bitfinex/quotes_SOLUSD_20220103
["timestamp","ask_amount","ask_price","bid_price","bid_amount"]
[1641217759914,8.8288,175.11,175.04,8.5686]
[1641217760118,8.8288,175.11,175.04,8.8286]
[1641217761041,11.21886766,175.11,175.04,8.8286]
[1641217762541,11.47886766,175.11,175.04,8.8286]
[1641217768247,8.5688,175.11,175.04,8.8286]
[1641217770950,8.8288,175.11,175.04,8.8286]
[1641217772050,8.8288,175.11,175.04,0.26]
[1641217772453,8.8288,175.11,175.03,8.8291]
[1641217780061,8.8288,175.11,175.03,0.26]
[1641217780261,8.8288,175.11,175.02,90.44]
[1641217780861,8.5698,175.08,175.02,90.44]
[1641217781064,8.8298,175.08,175.02,18.1743]
[1641217784666,8.5698,175.08,175.02,18.1743]
[1641217784869,8.569,175.09,175.02,18.1743]
[1641217793700,2.50307998,175.08,175.02,18.1743]
[1641217794103,8.569,175.09,175.02,18.1743]
[1641217795103,2.42343448,175.08,175.02,18.1743]
[1641217795706,10.99293448,175.08,175.02,10.0743]
[1641217796203,10.99293448,175.08,175.02,1.2448]
[1641217796402,11.25293448,175.08,175.02,1.2448]
[1641217799306,8.5695,175.08,175.02,1.5048]
[1641217799505,8.5695,175.08,175.02,10.0745]
[1641217802410,8.5695,175.08,175.02,9.8145]
[1641217802610,8.5695,175.08,175.02,10.0745]
[1641217802811,8.5695,175.08,175.02,9.8145]
[1641217803609,8.8295,175.08,175.02,9.8145]
[1641217805014,8.5695,175.08,175.02,10.0745]
[1641217805916,8.5695,175.08,175.02,9.8145]
[1641217806117,8.5695,175.08,175.02,10.0745]
[1641217810821,8.5693,175.09,175.02,10.0745]
[1641217811824,8.5693,175.09,175.02,9.8145]
[1641217812023,8.8293,175.09,175.02,8.5697]
[1641217812234,8.8293,175.09,175.01,77.0027]
[1641217812426,9.3293,175.09,175.0,8.5702]
[1641217812624,8.8293,175.09,175.0,8.5702]
[1641217813026,8.5693,175.09,175.0,8.5702]
[1641217813324,1.2819,175.09,175.04,8.5686]
[1641217813525,11.57516657,175.1,175.04,8.5686]
[1641217813725,11.57516657,175.1,175.04,8.8286]
[1641217814726,8.5688,175.1,175.04,8.8286]
[1641217818430,8.8288,175.1,175.04,8.8286]
[1641217819028,8.5688,175.1,175.04,8.8286]
[1641217820032,8.5688,175.1,175.04,8.5686]
[1641217820230,8.5688,175.1,175.02,9.8731]
[1641217820455,8.8288,175.1,175.02,10.1331]
[1641217821031,10.0784,175.1,175.02,10.1331]
[1641217822033,9.8184,175.1,175.02,11.55979368]
[1641217822432,9.8184,175.1,175.02,10.1331]
[1641217824935,39.5379621,175.14,175.03,1.42669368]
[1641217824936,8.5681,175.12,175.03,1.42669368]
[1641217825137,1.6206621,175.14,175.07,8.5671]
[1641217825636,1.6206621,175.14,175.07,8.8271]
[1641217826037,3.51812354,175.16,175.07,8.8271]
[1641217826438,8.5671,175.14,175.07,8.8271]
[1641217829773,8.5662,175.15,175.07,8.8271]
[1641217830571,1.6206621,175.17,175.07,8.8271]
[1641217830775,4.19042035,175.18,175.07,8.8271]
[1641217831470,8.5656,175.17,175.08,1.3252]
[1641217831673,2.56975825,175.18,175.11,8.5652]
[1641217832174,2.56975825,175.18,175.11,0.26]
[1641217832671,2.56975825,175.18,175.08,1.5852]
[1641217832874,3.32975825,175.18,175.08,1.5852]
[1641217833072,1.2397,175.17,175.08,1.5852]
[1641217833271,8.566,175.16,175.08,1.5852]
[1641217833471,9.066,175.16,175.08,1.5852]
[1641217834975,9.326,175.16,175.08,1.5852]
[1641217835172,8.826,175.16,175.08,1.3252]
[1641217835574,8.826,175.16,175.07,158.1479]
[1641217835773,8.826,175.16,175.07,84.5654]
[1641217835974,8.826,175.16,175.07,75.9987]
[1641217836475,1.2516,175.15,175.07,76.2587]
[1641217836676,8.5678,175.12,175.07,76.2587]
[1641217836880,2.61398403,175.11,175.07,0.26]
[1641217837278,2.61398403,175.11,175.06,8.8276]
[1641217837779,1.2516,175.15,175.06,16.9276]
[1641217837979,1.5116,175.15,175.06,16.9276]
[1641217838278,1.2516,175.15,175.06,16.9276]
[1641217838876,1.5116,175.15,175.06,16.9276]
[1641217840380,10.0779,175.15,175.06,16.9276]
[1641217846600,9.8179,175.15,175.06,16.9276]
[1641217856140,8.5663,175.15,175.06,16.9276]
[1641217856339,8.5656,175.17,175.06,16.9276]
[1641217856542,8.8256,175.17,175.06,16.9276]
[1641217857143,11.45687325,175.17,175.07,1.3313]
[1641217857340,11.45687325,175.17,175.1,8.5652]
[1641217857542,11.45687325,175.17,175.1,8.8252]
[1641217862355,8.8256,175.17,175.1,13.8712]
[1641217863856,8.5656,175.17,175.1,13.8712]
[1641217864256,11.20008485,175.18,175.1,13.8712]
[1641217868081,11.20008485,175.18,175.1,8.8252]
[1641217869181,11.20008485,175.18,175.1,8.5652]
[1641217869381,11.46008485,175.18,175.1,8.5652]
[1641217870883,11.46008485,175.18,175.1,8.8252]
[1641217871482,10.96008485,175.18,175.1,8.8252]
[1641217874185,10.70008485,175.18,175.1,8.8252]
[1641217878595,10.96008485,175.18,175.1,8.8252]
[1641217886394,10.96008485,175.18,175.1,0.26]
[1641217886596,10.96008485,175.18,175.09,10.1636]
[1641217886793,12.58074695,175.18,175.09,10.1636]
[1641217887195,1.2365,175.17,175.09,10.1636]
[1641217887394,8.5659,175.16,175.09,10.1636]
[1641217887595,2.74812083,175.15,175.09,10.1636]
[1641217890100,2.74812083,175.15,175.09,8.8259]
[1641217890301,11.31422083,175.15,175.01,1.274]
[1641217890501,11.57422083,175.15,175.02,78.4167]
[1641217890905,12.07422083,175.15,175.02,78.4167]
[1641217891103,1.2994,175.14,175.02,78.4167]
[1641217891404,8.5687,175.1,175.02,78.4167]
[1641217891610,30.3629,175.14,175.02,78.4167]
[1641217891805,32.2435621,175.14,175.02,78.4167]
[1641217892003,31.7435621,175.14,175.04,78.4125]
[1641217892403,8.5681,175.11,175.04,86.9808]
[1641217894508,2.77945308,175.12,175.04,86.9808]
[1641217896519,11.34705308,175.12,175.04,86.9808]
[1641217897023,11.60705308,175.12,175.04,86.9808]
[1641217900344,12.10705308,175.12,175.04,86.9808]
[1641217901152,12.10705308,175.12,175.04,78.4125]
[1641217907358,11.34705308,175.12,175.04,86.9808]
[1641217907572,8.5676,175.12,175.04,86.9808]
[1641217909060,5.53385221,175.14,175.05,8.1]
[1641217909262,4.21165221,175.14,175.07,8.5666]
[1641217909463,4.21165221,175.14,175.07,8.8266]
[1641217909661,2.59099011,175.14,175.07,8.8266]
[1641217910488,11.15759011,175.14,175.07,8.8266]
[1641217911591,11.41759011,175.14,175.07,8.8266]
[1641217912395,11.15759011,175.14,175.07,8.8266]
[1641217912597,11.41759011,175.14,175.07,8.8266]
[1641217912796,11.41759011,175.14,175.06,9.8017]
[1641217913197,11.41759011,175.14,175.06,1.2343]
[1641217914304,8.568,175.11,175.06,1.4943]
[1641217914502,10.7676424,175.11,175.06,0.26]
[1641217915303,10.7676424,175.11,175.04,86.9805]
[1641217915504,10.7676424,175.11,175.04,95.0805]
[1641217916304,8.568,175.11,175.04,95.0805]
[1641217922003,11.49261221,175.11,175.04,95.0805]
[1641217922206,8.568,175.11,175.04,95.0805]
[1641217922406,8.5676,175.12,175.04,95.0805]
[1641217923006,1.6206621,175.16,175.04,95.0805]
[1641217923206,2.59510686,175.14,175.04,95.0805]
[1641217923810,11.16180686,175.14,175.07,8.5667]
[1641217924007,11.16180686,175.14,175.07,8.8267]
[1641217926610,11.42180686,175.14,175.07,8.8267]
[1641217927211,11.16180686,175.14,175.07,8.8267]
[1641217929515,10.66180686,175.14,175.07,8.8267]
[1641217934020,10.92180686,175.14,175.07,8.8267]
[1641217935722,10.92180686,175.14,175.07,0.26]
[1641217935922,10.92180686,175.14,175.05,18.2687]
[1641217936522,1.2893,175.13,175.05,18.2687]
[1641217936745,9.8566,175.13,175.05,18.2687]
[1641217937626,9.8566,175.13,175.05,10.1687]
[1641217941628,9.8566,175.13,175.05,18.2687]
[1641217946736,9.8566,175.13,175.05,10.1687]
[1641217947940,9.8566,175.13,175.05,18.2687]
[1641217948141,9.8566,175.13,175.05,10.1687]
[1641217949941,10.3566,175.13,175.05,10.1687]
[1641217950544,10.3566,175.13,175.05,18.2687]
[1641217951547,10.3566,175.13,175.05,10.1687]
[1641217953364,9.8566,175.13,175.05,10.1687]
[1641217955766,9.8566,175.13,175.05,1.3414]
[1641217955965,10.1166,175.13,175.05,1.3414]
[1641217956965,10.1166,175.13,175.05,1.6014]
[1641217962872,10.6166,175.13,175.05,1.6014]
[1641217964173,10.1166,175.13,175.05,1.6014]
[1641217964374,10.6166,175.13,175.05,1.6014]
[1641217964576,10.1166,175.13,175.05,1.6014]
[1641217967479,9.8566,175.13,175.05,1.6014]
[1641217968878,10.3566,175.13,175.05,1.6014]
[1641217969079,10.6166,175.13,175.05,1.6014]
[1641217969880,10.1166,175.13,175.05,1.6014]
[1641217972284,9.8566,175.13,175.05,1.3414]
[1641217973488,10.1166,175.13,175.05,1.6014]
[1641217978512,10.1166,175.13,175.02,8.5692]
[1641217978716,10.6166,175.13,174.99,8.1]
[1641217978914,2.43443458,175.11,174.97,1.3138]
[1641217979114,11.26671614,175.05,174.97,1.3138]
[1641217980516,11.26671614,175.05,174.97,9.8849]
[1641217980717,8.5711,175.05,174.97,9.8849]
[1641217981319,8.5711,175.05,174.97,10.1449]
[1641217984324,8.8311,175.05,174.97,10.1449]
[1641217984520,8.5711,175.05,174.97,10.1449]
[1641217985829,8.5711,175.05,174.97,9.8849]
[1641217987231,8.5711,175.05,174.97,10.1449]
[1641217990139,11.01526918,175.06,174.97,10.1449]
[1641217991938,11.27526918,175.06,174.97,9.8849]
[1641217993239,11.27526918,175.06,174.97,10.1449]
[1641217993437,8.8304,175.06,174.97,10.1449]
[1641217994737,2.45405305,175.05,174.97,10.1449]
[1641217994940,11.02525305,175.05,174.97,10.1449]
[1641217995141,8.5712,175.05,174.97,10.1449]
[1641217996641,8.8305,175.06,174.97,10.1449]
[1641217997040,8.5705,175.06,174.97,10.1449]
[1641217997242,1.2547,175.08,174.97,10.1449]
[1641217998445,10.0842,175.08,174.97,10.1449]
[1641217999646,9.8242,175.08,174.97,10.1449]
[1641218001750,10.0842,175.08,174.97,10.1449]
[1641218005550,0.26,175.08,174.98,42.0]
[1641218005953,84.24511528,175.11,174.98,50.8307]
[1641218006349,1.2484,175.1,174.99,1.2507]
[1641218006550,8.5707,175.06,174.99,1.5107]
[1641218007550,8.5707,175.06,174.99,10.0812]
[1641218008751,8.8307,175.06,174.99,8.5705]
[1641218009752,8.5707,175.06,174.99,8.5705]
[1641218010155,8.5707,175.06,174.99,8.8305]
[1641218011656,8.5707,175.06,174.99,32.73516172]
[1641218011856,56.48881528,175.11,175.0,1.42669368]
[1641218012059,56.48881528,175.11,175.02,8.5688]
[1641218012257,56.48881528,175.11,175.03,1.3126]
[1641218012657,2.70820998,175.1,175.03,1.5726]
[1641218012857,8.569,175.09,175.03,1.5726]
[1641218015869,8.829,175.09,175.03,1.5726]
[1641218016072,8.569,175.09,175.03,1.5726]
[1641218018471,8.829,175.09,175.03,1.3126]
[1641218019297,10.0605,175.09,175.03,1.3126]
[1641218020201,10.0605,175.09,175.01,8.5698]
[1641218020400,10.0605,175.09,175.01,1.5703]
[1641218021406,9.8005,175.09,175.01,1.5703]
[1641218021705,10.0605,175.09,175.01,1.5703]
[1641218023808,10.0605,175.09,175.01,10.14]
[1641218024008,9.8005,175.09,175.01,10.14]
[1641218024311,11.27670998,175.1,175.01,10.14]
[1641218025111,2.70820998,175.1,175.01,10.14]
[1641218033344,8.5681,175.11,175.01,10.14]
[1641218033548,1.6206621,175.15,175.02,9.52669368]
[1641218033746,1.6206621,175.15,175.08,8.5655]
[1641218034145,1.6206621,175.15,175.08,8.8255]
[1641218034547,2.73140501,175.15,175.08,8.8255]
[1641218036449,11.29760501,175.15,175.08,8.8255]
[1641218039852,11.29760501,175.15,175.08,8.5655]
[1641218041253,11.29760501,175.15,175.08,8.8255]
[1641218042454,11.29760501,175.15,175.08,9.15963361]
[1641218042653,11.29760501,175.15,175.08,8.89963361]
[1641218042854,11.29760501,175.15,175.08,0.33413361]
[1641218042855,11.55760501,175.15,175.08,0.33413361]
[1641218043856,11.55760501,175.15,175.04,8.1]
[1641218044357,1.2856,175.14,175.04,8.36]
[1641218044555,8.5675,175.12,175.06,8.5673]
[1641218044956,8.5675,175.12,175.06,8.8273]
[1641218045156,11.0078322,175.12,175.06,8.8273]
[1641218045358,8.5675,175.12,175.06,8.8273]
[1641218045560,8.5672,175.13,175.06,8.8273]
[1641218045759,1.2856,175.14,175.06,8.8273]
[1641218046360,1.2856,175.14,175.06,10.0671]
[1641218047058,1.2856,175.14,175.06,8.8273]
[1641218048659,9.8524,175.14,175.06,8.8273]
[1641218050262,9.8524,175.14,175.06,8.5673]
[1641218050666,2.93042847,175.13,175.06,8.5673]
[1641218050863,11.49782847,175.13,175.06,8.5673]
[1641218051660,11.49782847,175.13,175.06,8.8273]
[1641218051860,2.93042847,175.13,175.06,8.8273]
[1641218054064,11.49772847,175.13,175.06,8.8273]
[1641218055868,2.93042847,175.13,175.06,8.8273]
[1641218057468,11.49782847,175.13,175.06,8.8273]
[1641218058570,11.49782847,175.13,175.06,0.26]
[1641218059065,11.49782847,175.13,175.05,8.8278]
[1641218059967,11.75782847,175.13,175.05,8.8278]
[1641218060167,11.75782847,175.13,175.05,0.26]
[1641218060567,11.75782847,175.13,175.03,8.8284]
[1641218061071,1.3429,175.12,175.03,8.8284]
[1641218061472,2.94893052,175.09,175.03,8.8284]
[1641218062469,11.51803052,175.09,175.01,18.0019]
[1641218062670,11.77803052,175.09,175.01,18.0019]
[1641218063871,11.77803052,175.09,175.01,18.2619]
[1641218064498,11.77803052,175.09,175.01,9.4326]
[1641218065899,11.77803052,175.09,175.01,9.6926]
[1641218066301,11.51803052,175.09,175.01,9.6926]
[1641218066900,11.51803052,175.09,175.01,18.2622]
[1641218068400,11.51803052,175.09,175.01,9.6926]
[1641218068605,11.77803052,175.09,175.01,9.6926]
[1641218071506,11.44389691,175.09,175.01,9.6926]
[1641218072711,8.8291,175.09,175.01,9.6926]
[1641218073111,8.8291,175.09,175.01,18.2623]
[1641218073311,8.5691,175.09,175.01,18.2623]
[1641218073712,8.5691,175.09,175.02,31.37635375]
[1641218073914,4.08207746,175.12,175.02,31.37635375]
[1641218074115,4.08207746,175.12,175.04,8.5679]
[1641218074514,4.08207746,175.12,175.04,8.8279]
[1641218075315,8.5685,175.11,175.04,8.8279]
[1641218080222,8.8285,175.11,175.04,8.8279]
[1641218081822,8.8285,175.11,175.04,8.5679]
[1641218082720,8.8285,175.11,175.03,9.8695]
[1641218083121,8.8285,175.11,175.03,10.1295]
[1641218083522,10.0996,175.11,175.03,10.1295]
[1641218085627,10.0996,175.11,175.03,9.8695]
[1641218086927,10.0996,175.11,175.03,10.1295]
[1641218098569,10.0996,175.11,175.03,9.8695]
[1641218100075,10.0996,175.11,175.03,10.1295]
[1641218101573,10.0996,175.11,175.03,1.5606]
[1641218104979,10.0996,175.11,175.03,1.3006]
[1641218105383,10.5996,175.11,175.03,1.3006]
[1641218117614,9.8396,175.11,175.03,1.3006]
[1641218117819,9.8396,175.11,175.03,1.5606]
[1641218118019,9.8396,175.11,175.03,6.3706]
[1641218118020,8.5685,175.11,175.03,6.3706]
[1641218118215,8.5675,175.12,175.03,6.3706]
[1641218119017,2.38934963,175.11,175.03,1.5606]
[1641218119217,2.38934963,175.11,175.03,10.1296]
[1641218119416,10.95744963,175.11,175.03,10.1296]
[1641218119817,11.21744963,175.11,175.03,10.1296]
[1641218121419,11.21744963,175.11,175.03,9.8696]
[1641218121619,11.21744963,175.11,175.03,1.3006]
[1641218122622,8.5696,175.08,175.03,1.3006]
[1641218122827,11.32984867,175.08,175.03,0.26]
[1641218123022,11.32984867,175.08,175.0,80.4438]
[1641218123423,11.32984867,175.08,175.02,8.5696]
[1641218123625,2.76024867,175.08,175.02,8.8296]
[1641218126829,11.32984867,175.08,175.0,81.9069]
[1641218127033,11.58984867,175.08,175.0,81.9069]
[1641218127629,11.58984867,175.08,174.99,73.9307]
[1641218127834,12.08984867,175.08,174.95,18.09899368]
[1641218128061,12.08984867,175.08,174.96,1.2302]
[1641218128762,8.5725,175.02,174.96,1.2302]
[1641218128959,8.5725,175.02,174.96,1.4902]
[1641218129161,8.8325,175.02,174.96,1.2302]
[1641218129362,8.8325,175.02,174.96,1.4902]
[1641218130163,2.33573189,175.01,174.96,1.4902]
[1641218131166,8.8325,175.02,174.96,1.4902]
[1641218132368,11.5192833,175.02,174.96,1.4902]
[1641218133570,8.8325,175.02,174.96,1.4902]
[1641218138078,8.8325,175.02,174.96,1.2302]
[1641218146283,11.04355911,175.02,174.96,1.2302]
[1641218146484,8.8325,175.02,174.96,1.2302]
[1641218147385,8.8325,175.02,174.93,82.9224]
[1641218147586,11.64536477,175.02,174.94,8.5731]
[1641218147988,11.64536477,175.02,174.94,9.8969]
[1641218148388,11.64536477,175.02,174.94,11.32359368]
[1641218148790,8.8325,175.02,174.94,11.58359368]
[1641218149189,8.8325,175.02,174.94,11.32359368]
[1641218149589,8.8325,175.02,174.94,11.58359368]
[1641218149791,8.5725,175.02,174.94,11.58359368]
[1641218151293,1.2407,175.03,174.94,11.58359368]
[1641218151893,1.2407,175.03,174.95,8.1]
[1641218152090,1.2407,175.03,174.97,8.5712]
[1641218152291,9.7206621,175.09,174.97,8.5712]
[1641218152494,2.38180836,175.06,174.98,1.2931]
[1641218152693,2.38180836,175.06,174.98,2.71979368]
[1641218152891,2.38180836,175.06,174.98,2.97979368]
[1641218153094,1.3226,175.07,175.0,8.5702]
[1641218153492,1.3226,175.07,175.0,8.8302]
[1641218154519,10.153,175.07,175.0,8.8302]
[1641218156422,2.41870835,175.06,175.0,8.8302]
[1641218158727,2.41870835,175.06,175.0,8.5702]
[1641218160026,10.153,175.07,175.0,8.8302]
[1641218161027,12.81448229,175.07,175.0,8.8302]
[1641218163034,8.5704,175.07,175.0,8.8302]
[1641218163231,2.6533,175.11,175.0,8.8302]
[1641218163437,2.6533,175.11,175.0,18.35689368]
[1641218164232,8.5685,175.1,175.0,18.35689368]
[1641218164433,1.6206621,175.13,175.07,8.5671]
[1641218164831,1.6206621,175.13,175.07,8.8271]
[1641218165433,2.207633,175.14,175.07,8.8271]
[1641218166434,10.774433,175.14,175.07,8.8271]
[1641218167033,11.034433,175.14,175.06,8.5676]
[1641218167236,11.034433,175.14,175.05,0.26]
[1641218167833,1.2745,175.13,175.04,0.26]
[1641218168035,1.5345,175.13,175.03,8.5687]
[1641218168935,2.0345,175.13,174.99,8.1]
[1641218169136,2.81550331,175.07,175.0,1.2613]
[1641218169536,3.07550331,175.07,175.0,1.2613]
[1641218170136,3.07550331,175.07,175.0,1.5213]
[1641218170436,8.5707,175.06,175.0,10.0916]
[1641218175441,8.5707,175.06,175.0,11.51829368]
[1641218175644,8.5707,175.06,175.0,10.0916]
[1641218177341,8.8301,175.07,175.0,10.0916]
[1641218189986,9.3301,175.07,175.0,10.0916]
[1641218193293,8.8301,175.07,175.0,10.0916]
[1641218194893,8.5701,175.07,175.0,10.0916]
[1641218196094,8.5701,175.07,175.0,18.1916]
[1641218196300,8.8301,175.07,175.0,18.1916]
[1641218196495,8.8301,175.07,175.0,10.0916]
[1641218196896,2.78419453,175.06,175.0,10.0916]
[1641218197697,2.78419453,175.06,175.0,18.1916]
[1641218197896,8.8301,175.07,175.0,18.1916]
[1641218199519,8.8301,175.07,175.0,16.9303]
[1641218200122,8.5701,175.07,175.0,16.6703]
[1641218200321,8.8301,175.07,175.0,16.6703]
[1641218202226,8.8301,175.07,175.0,16.9303]
[1641218204931,2.94982442,175.06,175.0,16.9303]
[1641218205132,3.20982442,175.06,175.0,16.9303]
[1641218205735,11.78032442,175.06,175.0,16.9303]
[1641218205933,11.78032442,175.06,175.0,8.8303]
[1641218208336,11.78032442,175.06,175.0,8.5703]
[1641218208337,11.52032442,175.06,175.0,8.5703]
[1641218208536,11.78032442,175.06,174.99,9.7989]
[1641218208938,11.78032442,175.06,174.99,1.2276]
[1641218210438,11.78032442,175.06,174.98,87.4703]
[1641218212540,11.78032442,175.06,174.98,78.8987]
[1641218216243,11.78032442,175.06,174.98,79.1587]
[1641218216443,11.78032442,175.06,174.98,87.7302]
[1641218217043,11.78032442,175.06,174.98,89.0116]
[1641218218447,11.78032442,175.06,174.98,88.7516]
[1641218219450,11.78032442,175.06,174.98,80.1801]
[1641218220350,11.78032442,175.06,174.95,8.1]
[1641218220553,12.28032442,175.06,174.95,8.1]
[1641218221850,1.2687,175.05,174.95,8.1]
[1641218222055,8.573,175.02,174.95,8.1]
[1641218222453,8.833,175.02,174.95,8.1]
[1641218223455,8.833,175.02,174.95,16.673]
[1641218227557,8.833,175.02,174.94,1.3285]
[1641218227758,14.175,175.02,174.91,76.7169]
[1641218227959,14.175,175.02,174.91,77.9401]
[1641218228362,14.675,175.02,174.91,77.9401]
[1641218228561,8.5752,174.97,174.91,77.9401]
[1641218228761,8.5752,174.97,174.91,1.2232]
[1641218228961,8.8352,174.97,174.91,1.2232]
[1641218229661,8.8352,174.97,174.91,9.7983]
[1641218231065,2.61229018,175.0,174.91,9.7983]
[1641218231266,1.324,175.01,174.91,10.0583]
[1641218231768,1.324,175.01,174.92,1.42669368]
[1641218231966,1.584,175.01,174.94,8.5732]
[1641218232369,1.584,175.01,174.94,8.8332]
[1641218232666,83.1167,175.05,174.94,8.8332]
[1641218232667,75.0167,175.05,174.94,15.1812]
[1641218232867,1.2606,175.05,174.95,1.3412]
[1641218233090,1.2606,175.05,174.95,1.6012]
[1641218233492,1.2606,175.05,174.95,3.02789368]
[1641218233690,1.2606,175.05,174.95,11.12789368]
[1641218234893,8.5722,175.03,174.97,8.572]
[1641218235092,8.5722,175.03,174.97,8.832]
[1641218235292,8.8322,175.03,174.97,8.832]
[1641218236091,8.8322,175.03,174.96,9.8934]
[1641218236693,8.8322,175.03,174.96,1.3209]
[1641218238395,10.1678,175.03,174.96,1.3209]
[1641218249210,10.6678,175.03,174.96,1.3209]
[1641218249910,10.1678,175.03,174.96,1.3209]
[1641218252012,10.6678,175.03,174.96,1.3209]
[1641218253017,10.6678,175.03,174.94,79.2429]
[1641218257022,10.6678,175.03,174.91,9.8117]
[1641218257221,8.1,175.02,174.91,1.2371]
[1641218257421,8.5758,174.97,174.91,1.2371]
[1641218257622,2.14367171,174.96,174.9,79.4987]
[1641218257821,2.14367171,174.96,174.86,1.2214]
[1641218258024,1.2663,174.95,174.86,1.2214]
[1641218258421,8.5776,174.92,174.86,1.2214]
[1641218258623,8.5776,174.92,174.85,1.42669368]
[1641218258624,8.8376,174.92,174.85,1.42669368]
[1641218259024,8.8376,174.92,174.83,89.6256]
[1641218259222,8.5776,174.92,174.83,80.9303]
[1641218259446,8.5776,174.92,174.83,89.5085]
[1641218259648,8.8376,174.92,174.83,89.5085]
[1641218260550,8.8376,174.92,174.83,90.93519368]
[1641218261748,8.8376,174.92,174.83,91.19519368]
[1641218262346,8.5776,174.92,174.83,91.19519368]
[1641218262950,8.5769,174.93,174.83,91.19519368]
[1641218265053,8.8369,174.93,174.83,91.19519368]
[1641218266254,8.5769,174.93,174.83,90.93519368]
[1641218267654,8.8369,174.93,174.83,90.93519368]
[1641218268457,1.3221,174.92,174.83,90.93519368]
[1641218268855,8.5782,174.91,174.83,91.19519368]
[1641218269057,2.77638496,174.9,174.83,91.19519368]
[1641218269456,2.77638496,174.9,174.83,90.93519368]
[1641218269661,8.5782,174.91,174.83,90.93519368]
[1641218270058,9.8995,174.92,174.83,90.93519368]
[1641218270456,10.1595,174.92,174.83,90.93519368]
[1641218270858,10.1595,174.92,174.83,91.19519368]
[1641218271257,9.8995,174.92,174.83,91.19519368]
[1641218271556,10.1595,174.92,174.83,90.93519368]
[1641218273161,10.1595,174.92,174.83,91.19519368]
[1641218273361,9.8995,174.92,174.83,91.19519368]
[1641218273559,1.3221,174.92,174.83,91.19519368]
[1641218274761,1.5821,174.92,174.83,91.19519368]
[1641218274962,10.1595,174.92,174.83,91.19519368]
[1641218276565,10.1595,174.92,174.83,90.93519368]
[1641218277664,9.8995,174.92,174.83,90.93519368]
[1641218278063,9.8995,174.92,174.83,91.19519368]
[1641218279065,10.1595,174.92,174.83,91.19519368]
[1641218285674,10.1595,174.92,174.83,90.93519368]
[1641218285877,10.1595,174.92,174.83,80.9303]
[1641218286076,10.6595,174.92,174.83,80.9303]
[1641218286880,10.1595,174.92,174.83,80.9303]
[1641218287480,10.6595,174.92,174.83,80.9303]
[1641218288179,10.6595,174.92,174.8,81.0919]
[1641218288783,8.1,174.91,174.8,72.5114]
[1641218289079,2.43869293,174.85,174.8,72.5114]
[1641218289280,2.43869293,174.85,174.79,2.5729]
[1641218289483,2.69869293,174.85,174.79,1.2551]
[1641218290280,2.69869293,174.85,174.79,1.5151]
[1641218290580,2.69869293,174.85,174.78,8.581]
[1641218291486,11.27969293,174.85,174.78,8.581]
[1641218292182,11.27969293,174.85,174.78,8.841]
[1641218292984,11.27969293,174.85,174.78,8.581]
[1641218294403,11.27969293,174.85,174.78,8.841]
[1641218294605,11.27969293,174.85,174.78,8.581]
[1641218295206,11.27969293,174.85,174.78,8.841]
[1641218295706,11.27969293,174.85,174.77,8.5818]
[1641218296108,11.27969293,174.85,174.77,8.8418]
[1641218297711,11.27969293,174.85,174.75,8.1]
[1641218298310,11.27969293,174.85,174.75,9.52669368]
[1641218298510,11.01969293,174.85,174.75,9.52669368]
[1641218299011,11.01969293,174.85,174.75,9.78669368]
[1641218299409,11.01969293,174.85,174.77,8.5818]
[1641218299612,11.01969293,174.85,174.77,8.8418]
[1641218299812,11.27969293,174.85,174.77,8.8418]
[1641218301814,11.27969293,174.85,174.77,0.26]
[1641218302015,11.27969293,174.85,174.76,8.8423]
[1641218303217,11.27969293,174.85,174.76,8.5823]
[1641218304123,11.27969293,174.85,174.74,8.583]
[1641218304520,11.77969293,174.85,174.74,8.843]
[1641218304718,11.27969293,174.85,174.74,8.843]
[1641218304925,11.27969293,174.85,174.74,8.583]
[1641218305520,11.77969293,174.85,174.74,8.583]